bitfinex/quotes_SOLUSD_20250819
["timestamp","ask_amount","ask_price","bid_price","bid_amount"]
[1755612857632,41.05,182.67,182.63,0.03]
[1755612857804,0.69,182.66,182.63,0.03]
[1755612858302,0.69,182.65,182.63,0.03]
[1755612858521,40.36,182.64,182.63,0.03]
[1755612858714,41.05,182.64,182.63,0.03]
[1755612859108,51.74131499,182.64,182.63,0.03]
[1755612859330,13.59559401,182.63,182.62,0.03]
[1755612859505,24.286909,182.63,182.62,0.03]
[1755612859710,24.976909,182.63,182.6,0.03]
[1755612860018,29.76306036,182.61,182.6,0.03]
[1755612860211,70.12306036,182.61,182.6,0.03]
[1755612860406,70.81306036,182.61,182.6,0.03]
[1755612862822,13.59559401,182.6,182.56,0.03]
[1755612863023,50.286909,182.57,182.56,0.03]
[1755612863329,90.646909,182.57,182.56,0.03]
[1755612863531,26.0,182.55,182.54,0.03]
[1755612863706,77.05131499,182.55,182.54,0.03]
[1755612864208,91.336909,182.55,182.54,0.03]
[1755612865018,96.81486024,182.55,182.54,0.03]
[1755612865335,91.336909,182.55,182.54,0.03]
[1755612866151,11.38131499,182.55,182.54,0.03]
[1755612866305,40.36,182.55,182.54,0.03]
[1755612866628,65.336909,182.55,182.54,0.03]
[1755612866820,65.336909,182.55,182.47,0.2]
[1755612867020,10.69131499,182.48,182.47,0.2]
[1755612867208,51.05131499,182.48,182.47,0.2]
[1755612867542,51.74131499,182.48,182.47,0.2]
[1755612867759,65.336909,182.48,182.47,0.2]
[1755612868042,26.0,182.45,182.29,40.36]
[1755612868249,10.69131499,182.39,182.34,0.67]
[1755612868416,40.38,182.38,182.34,0.67]
[1755612868749,40.38,182.38,182.35,0.67]
[1755612869316,51.07131499,182.38,182.34,5.48399839]
[1755612869862,40.38,182.38,182.34,5.48399839]
[1755612870016,51.07131499,182.38,182.34,5.48399839]
[1755612870215,40.38,182.38,182.33,16.17587595]
[1755612870420,40.38,182.38,182.34,0.67]
[1755612870755,57.23414024,182.38,182.34,0.67]
[1755612871213,40.38,182.38,182.34,0.67]
[1755612871631,16.85414024,182.43,182.37,16.85414024]
[1755612871833,40.38,182.42,182.37,16.85414024]
[1755612872035,16.85414024,182.39,182.33,31.48456096]
[1755612872217,40.38,182.38,182.33,31.48456096]
[1755612872419,40.38,182.38,182.33,49.0087012]
[1755612872639,40.38,182.38,182.35,16.85414024]
[1755612873148,16.85414024,182.36,182.31,5.48516263]
[1755612873344,16.85414024,182.34,182.31,5.48516263]
[1755612873547,40.38,182.33,182.28,31.48606539]
[1755612873719,40.38,182.33,182.28,48.34020563]
[1755612873926,40.38,182.33,182.28,49.04020563]
[1755612874122,40.38,182.33,182.3,16.85414024]
[1755612874341,40.38,182.33,182.31,5.48516263]
[1755612874847,40.38,182.33,182.3,5.48540806]
[1755612875026,41.06,182.33,182.3,5.48540806]
[1755612875222,16.85414024,182.31,182.24,16.85414024]
[1755612875548,40.38,182.3,182.24,5.48726953]
[1755612875735,16.85414024,182.33,182.27,16.85414024]
[1755612875930,17.53414024,182.35,182.3,16.85414024]
[1755612876234,40.38,182.34,182.3,16.85414024]
[1755612876433,40.38,182.34,182.31,5.48516263]
[1755612876633,14.27559401,182.39,182.33,16.85414024]
[1755612876844,40.4,182.38,182.33,16.85414024]
[1755612877033,0.68,182.39,182.34,16.85414024]
[1755612877223,40.4,182.38,182.35,16.85414024]
[1755612877421,40.4,182.38,182.34,16.85414024]
[1755612877618,16.85414024,182.4,182.31,19.19806921]
[1755612877619,40.4,182.37,182.31,6.18516263]
[1755612877965,16.85414024,182.35,182.29,5.48547182]
[1755612878163,40.4,182.34,182.29,22.33961206]
[1755612878356,40.4,182.34,182.3,16.88414024]
[1755612878537,45.07836868,182.39,182.32,16.85414024]
[1755612878538,0.68,182.37,182.32,16.85414024]
[1755612878857,57.93414024,182.36,182.3,16.88414024]
[1755612879168,41.08,182.36,182.31,16.85414024]
[1755612879337,40.4,182.36,182.32,16.85414024]
[1755612879660,40.4,182.36,182.33,16.85414024]
[1755612879963,40.4,182.36,182.35,16.85414024]
[1755612880125,17.53414024,182.41,182.35,16.85414024]
[1755612880472,16.484875,182.44,182.4,16.85414024]
[1755612880654,40.4,182.44,182.43,16.85414024]
[1755612880826,40.4,182.44,182.38,5.48305735]
[1755612881025,40.4,182.44,182.39,16.85414024]
[1755612881249,0.68,182.43,182.38,22.33719759]
[1755612881448,40.4,182.44,182.41,16.85414024]
[1755612881653,0.06,182.47,182.43,16.85414024]
[1755612881849,0.06,182.47,182.41,26.0]
[1755612881850,40.46,182.47,182.45,16.85414024]
[1755612882375,40.46,182.47,182.43,5.48155456]
[1755612882773,40.46,182.47,182.44,16.85414024]
[1755612883145,40.46,182.47,182.43,22.3356948]
[1755612883348,40.46,182.47,182.44,16.85414024]
[1755612883549,0.68,182.46,182.42,22.33594058]
[1755612883772,0.68,182.45,182.42,22.33594058]
[1755612883982,0.68,182.45,182.41,16.85414024]
[1755612884186,40.46,182.47,182.35,5.48395941]
[1755612884187,16.85414024,182.42,182.35,5.48395941]
[1755612884366,57.93414024,182.41,182.35,22.33809965]
[1755612884686,40.4,182.4,182.35,22.33809965]
[1755612884884,40.4,182.4,182.35,5.48395941]
[1755612885088,17.53414024,182.39,182.34,5.48418475]
[1755612885292,16.85414024,182.39,182.34,5.48418475]
[1755612885584,0.68,182.38,182.34,5.48418475]
[1755612885891,0.68,182.45,182.37,16.85414024]
[1755612886059,40.4,182.44,182.4,16.85414024]
[1755612886261,40.4,182.44,182.43,22.3356948]
[1755612886483,40.4,182.44,182.42,22.33591452]
[1755612886675,0.68,182.43,182.39,42.85414024]
[1755612886878,0.68,182.42,182.39,26.0]
[1755612887293,0.68,182.42,182.37,5.483358]
[1755612887671,0.68,182.42,182.38,16.85414024]
[1755612887870,17.53414024,182.41,182.35,26.0]
[1755612888071,57.33414024,182.4,182.34,48.33840041]
[1755612888473,57.33414024,182.4,182.34,22.33840041]
[1755612888673,16.85414024,182.39,182.34,22.33840041]
[1755612888886,17.53414024,182.39,182.34,22.33840041]
[1755612889196,17.53414024,182.39,182.34,5.48426017]
[1755612889572,17.53414024,182.39,182.34,22.33840041]
[1755612890490,17.53414024,182.39,182.34,5.48426017]
[1755612890696,17.53414024,182.39,182.34,22.33840041]
[1755612891076,17.53414024,182.39,182.34,5.48426017]
[1755612891388,17.53414024,182.38,182.31,5.48497926]
[1755612891700,16.85414024,182.37,182.31,22.3391195]
[1755612891892,40.42,182.36,182.31,22.3391195]
[1755612892270,40.42,182.36,182.31,5.48497926]
[1755612892468,41.1,182.36,182.32,16.85414024]
[1755612892677,40.42,182.36,182.31,16.85414024]
[1755612892898,0.68,182.35,182.3,0.03]
[1755612893078,0.68,182.34,182.3,16.88414024]
[1755612893511,40.42,182.36,182.31,16.85414024]
[1755612893707,40.4,182.35,182.34,16.85414024]
[1755612893875,40.4,182.35,182.32,0.7]
[1755612894083,40.4,182.35,182.33,16.85414024]
[1755612894482,40.4,182.35,182.31,16.85414024]
[1755612894689,40.4,182.35,182.32,16.85414024]
[1755612895078,40.4,182.35,182.33,16.85414024]
[1755612895278,40.4,182.35,182.31,5.48516263]
[1755612895487,40.4,182.35,182.32,16.85414024]
[1755612895802,40.4,182.35,182.31,5.48516263]
[1755612895991,40.4,182.35,182.3,22.36953139]
[1755612896194,16.85414024,182.33,182.3,0.03]
[1755612896602,57.25414024,182.35,182.3,0.03]
[1755612897095,57.93414024,182.35,182.3,0.03]
[1755612897302,57.25414024,182.35,182.3,0.03]
[1755612897508,0.68,182.34,182.3,0.03]
[1755612897717,40.4,182.35,182.3,16.88414024]
[1755612898012,40.4,182.34,182.3,0.03]
[1755612898210,40.4,182.34,182.31,16.85414024]
[1755612898597,40.4,182.34,182.32,5.48486178]
[1755612899001,41.08,182.34,182.31,5.48511345]
[1755612899205,0.68,182.33,182.3,5.51538932]
[1755612899388,40.4,182.34,182.3,5.51538932]
[1755612899588,0.68,182.33,182.3,5.51538932]
[1755612899884,0.68,182.32,182.3,0.03]
[1755612900205,0.68,182.36,182.31,16.85414024]
[1755612900413,11.4136976,182.39,182.33,10.7336976]
[1755612900590,40.4,182.38,182.34,16.21795777]
[1755612900783,16.483064,182.44,182.37,10.7336976]
[1755612901036,0.68,182.42,182.35,0.7]
[1755612901311,0.68,182.42,182.38,10.7336976]
[1755612901502,0.68,182.42,182.34,19.8949106]
[1755612901700,0.68,182.42,182.37,10.7336976]
[1755612902105,10.7336976,182.41,182.35,10.7336976]
[1755612902308,40.42,182.43,182.39,16.84481086]
[1755612902518,0.06,182.53,182.42,16.84481086]
[1755612902519,0.68,182.48,182.42,16.84481086]
[1755612902687,40.42,182.46,182.42,16.84481086]
[1755612903013,0.69,182.45,182.4,16.84481086]
[1755612903219,16.84481086,182.42,182.35,13.70944949]
[1755612903535,40.42,182.41,182.36,16.84481086]
[1755612903728,40.42,182.41,182.35,13.70944949]
[1755612904013,40.42,182.41,182.38,16.84481086]
[1755612904202,0.69,182.4,182.36,5.48365869]
[1755612904382,0.69,182.39,182.35,16.84481086]
[1755612904586,0.69,182.39,182.35,22.32852134]
[1755612904802,40.42,182.41,182.37,16.84481086]
[1755612905002,40.46,182.4,182.37,16.84481086]
[1755612905306,40.46,182.4,182.39,16.84481086]
[1755612905720,40.46,182.4,182.39,0.72]
[1755612905900,40.44,182.43,182.39,17.56481086]
[1755612906096,40.44,182.43,182.41,16.84481086]
[1755612906649,40.44,182.43,182.42,22.32666591]
[1755612906832,57.97481086,182.43,182.36,79.2]
[1755612907137,0.69,182.42,182.38,16.84481086]
[1755612907510,40.44,182.43,182.38,16.84481086]
[1755612907832,40.44,182.43,182.4,16.84481086]
[1755612908236,41.13,182.43,182.38,16.84481086]
[1755612908630,0.69,182.42,182.37,13.70839502]
[1755612908819,40.44,182.43,182.4,16.84481086]
[1755612909020,40.44,182.43,182.42,16.84481086]
[1755612909529,0.06,182.47,182.42,17.56481086]
[1755612909733,40.54,182.47,182.45,16.84481086]
[1755612909945,21.09207205,182.46,182.4,42.84481086]
[1755612910150,17.53481086,182.46,182.4,42.84481086]
[1755612910309,20.4021443,182.45,182.39,16.84481086]
[1755612910511,16.84481086,182.45,182.39,16.84481086]
[1755612910822,0.69,182.46,182.41,22.32696644]
[1755612911017,3.55727287,182.46,182.45,16.84481086]
[1755612911217,0.06,182.47,182.44,16.84481086]
[1755612911418,16.84481086,182.46,182.41,5.48215558]
[1755612911614,0.75,182.47,182.44,26.0]
[1755612911615,0.06,182.47,182.44,26.0]
[1755612911836,0.06,182.47,182.46,16.84481086]
[1755612912145,0.06,182.47,182.46,17.56481086]
[1755612912363,0.06,182.49,182.46,17.56481086]
[1755612912657,0.06,182.49,182.48,42.84481086]
[1755612912818,0.06,182.49,182.48,48.32486346]
[1755612913430,0.06,182.49,182.48,5.4800526]
[1755612913627,0.75,182.49,182.45,42.84481086]
[1755612913942,0.75,182.49,182.46,16.84481086]
[1755612914153,0.06,182.49,182.45,26.0]
[1755612914455,0.06,182.49,182.47,16.84481086]
[1755612914620,0.06,182.49,182.48,16.84481086]
[1755612914811,0.06,182.49,182.48,22.32486346]
[1755612915017,0.06,182.49,182.48,49.04486346]
[1755612915939,1e-08,182.49,182.48,62.64045747]
[1755612916320,1e-08,182.49,182.48,45.79564661]
[1755612916528,1e-08,182.49,182.48,62.64045747]
[1755612918136,1e-08,182.51,182.5,26.0]
[1755612918340,1e-08,182.51,182.5,42.84481086]
[1755612918958,1e-08,182.51,182.5,5.47945205]
[1755612919531,1e-08,182.51,182.5,22.32426291]
[1755612919764,0.69000001,182.51,182.48,22.32486346]
[1755612919973,0.69,182.5,182.47,5.48026484]
[1755612920272,0.69,182.5,182.47,22.3250757]
[1755612920475,0.69,182.49,182.47,5.48026484]
[1755612920639,1e-08,182.51,182.47,22.3250757]
[1755612920977,0.69,182.5,182.47,22.3250757]
[1755612921271,1e-08,182.51,182.47,5.48026484]
[1755612921553,1e-08,182.51,182.47,22.3250757]
[1755612921750,0.69,182.5,182.47,22.3250757]
[1755612922057,17.53481086,182.49,182.41,0.72]
[1755612922268,16.84481086,182.47,182.42,16.84481086]
[1755612922478,0.69,182.46,182.42,16.20299107]
[1755612922684,10.72113602,182.48,182.42,16.20299107]
[1755612922889,10.72113602,182.48,182.38,5.48305735]
[1755612922890,10.72113602,182.43,182.38,5.48305735]
[1755612923091,0.69,182.42,182.38,5.48305735]
[1755612923252,0.69,182.42,182.38,16.20419337]
[1755612923450,0.69,182.41,182.35,0.03]
[1755612923765,0.69,182.41,182.36,5.48365869]
[1755612923954,0.69,182.4,182.36,16.20479471]
[1755612924348,41.21,182.43,182.39,10.72113602]
[1755612924561,51.24113602,182.43,182.37,10.72113602]
[1755612924764,51.24113602,182.43,182.36,19.91280543]
[1755612924765,11.41113602,182.42,182.36,16.20479471]
[1755612925156,0.69,182.42,182.37,10.72113602]
[1755612925463,0.69,182.41,182.37,10.72113602]
[1755612925655,0.69,182.41,182.36,16.20479471]
[1755612925863,0.69,182.4,182.36,16.20479471]
[1755612926061,40.52,182.43,182.36,5.48365869]
[1755612926268,51.93113602,182.43,182.37,10.72113602]
[1755612926578,41.21,182.43,182.37,10.72113602]
[1755612926755,41.21,182.43,182.38,10.72113602]
[1755612927078,40.46,182.46,182.42,10.72113602]
[1755612927278,40.46,182.46,182.44,10.72113602]
[1755612927488,40.46,182.46,182.43,16.20269058]
[1755612928262,40.46,182.46,182.44,10.72113602]
[1755612929185,40.46,182.46,182.45,5.48095368]
[1755612929484,1e-08,182.51,182.45,16.2020897]
[1755612929485,40.46,182.49,182.45,16.2020897]
[1755612929683,40.46,182.49,182.48,10.72113602]
[1755612929874,41.15,182.49,182.44,16.20234147]
[1755612930182,10.72113602,182.47,182.43,5.48152784]
[1755612930387,0.69,182.46,182.43,5.48152784]
[1755612931182,0.69,182.48,182.43,16.20266386]
[1755612931403,40.46,182.49,182.43,6.20152784]
[1755612931566,0.69,182.48,182.44,10.72113602]
[1755612931770,0.69,182.47,182.43,5.48152784]
[1755612931968,0.69,182.46,182.43,5.48152784]
[1755612932161,0.69,182.46,182.43,16.20266386]
[1755612932577,0.69,182.46,182.43,16.23266386]
[1755612932863,0.69,182.45,182.43,0.03]
[1755612933083,11.41113602,182.45,182.43,0.03]
[1755612933383,40.46,182.44,182.43,0.03]
[1755612933584,41.16,182.44,182.43,0.03]
[1755612933800,40.46,182.44,182.43,0.03]
[1755612934102,41.16,182.44,182.43,0.03]
[1755612934279,51.88113602,182.44,182.43,0.03]
[1755612934806,41.16,182.44,182.43,0.03]
[1755612935470,40.46,182.44,182.43,0.03]
[1755612935664,40.46,182.44,182.43,10.75113602]
[1755612936773,40.42,182.46,182.43,10.75113602]
[1755612936973,40.42,182.46,182.43,0.03]
[1755612937190,0.70000001,182.51,182.45,10.72113602]
[1755612937374,40.4,182.5,182.47,10.72113602]
[1755612937576,40.4,182.5,182.48,5.4800526]
[1755612937778,41.1,182.5,182.46,10.72113602]
[1755612937976,10.72113602,182.47,182.43,0.03]
[1755612938278,10.72113602,182.45,182.43,0.03]
[1755612938477,11.42113602,182.44,182.43,0.03]
[1755612938677,0.7,182.45,182.43,0.03]
[1755612939076,11.42113602,182.44,182.43,0.03]
[1755612939683,0.7,182.44,182.43,0.03]
[1755612940281,11.42113602,182.44,182.43,0.03]
[1755612940593,16.90239013,182.44,182.43,0.03]
[1755612940776,30.49798414,182.44,182.43,0.03]
[1755612941774,34.12817044,182.44,182.43,0.03]
[1755612942191,34.13109389,182.44,182.43,0.03]
[1755612942394,30.49798414,182.44,182.43,0.03]
[1755612943699,32.69560514,182.44,182.43,0.03]
[1755612946085,32.69560514,182.44,182.41,0.03]
[1755612946086,50.31673003,182.42,182.41,0.03]
[1755612946411,51.12113602,182.42,182.41,0.03]
[1755612947116,26.0,182.45,182.41,0.03]
[1755612947275,40.4,182.44,182.41,0.03]
[1755612947480,10.72113602,182.42,182.41,0.03]
[1755612947781,55.79858508,182.42,182.41,0.03]
[1755612948002,32.69644708,182.42,182.41,0.03]
[1755612948184,26.0,182.4,182.39,0.03]
[1755612948516,90.71673003,182.4,182.39,0.03]
[1755612948687,91.41673003,182.4,182.39,0.03]
[1755612949591,13.59559401,182.39,182.37,0.03]
[1755612949779,29.79978738,182.38,182.37,0.03]
[1755612949978,30.49978738,182.38,182.37,0.03]
[1755612950208,56.49978738,182.38,182.37,0.03]
[1755612950388,56.49978738,182.38,182.35,1e-08]
[1755612950389,56.46394748,182.36,182.35,1e-08]
[1755612950589,39.59559401,182.34,182.33,0.03]
[1755612950792,39.59559401,182.34,182.22,0.66]
[1755612950793,13.59559401,182.33,182.22,0.66]
[1755612951006,40.42,182.32,182.22,0.66]
[1755612951208,40.42,182.32,182.22,6.14779179]
[1755612951390,13.59559401,182.3,182.22,6.14779179]
[1755612951594,41.12,182.29,182.22,6.14779179]
[1755612951901,16.86835347,182.27,182.22,0.66]
[1755612952080,40.42,182.26,182.22,0.66]
[1755612952497,57.28835347,182.26,182.22,0.66]
[1755612952811,40.42,182.26,182.23,0.66]
[1755612953880,40.42,182.26,182.24,5.48726953]
[1755612956013,40.42,182.26,182.24,0.66]
[1755612956312,40.42,182.26,182.25,17.52835347]
[1755612956490,40.42,182.26,182.22,17.52835347]
[1755612956692,40.42,182.26,182.21,36.07695891]
[1755612956903,40.42,182.26,182.22,17.52835347]
[1755612957095,40.42,182.26,182.21,5.48817298]
[1755612957295,40.42,182.26,182.22,17.52835347]
[1755612957494,57.28835347,182.26,182.21,22.35652645]
[1755612957791,40.42,182.26,182.21,23.01652645]
[1755612958182,57.98835347,182.26,182.21,5.48817298]
[1755612959008,57.28835347,182.26,182.21,23.01652645]
[1755612959810,16.86835347,182.25,182.21,5.48817298]
[1755612960001,16.86835347,182.25,182.2,5.4884742]
[1755612960204,57.98835347,182.26,182.2,5.4884742]
[1755612960406,41.12,182.26,182.2,5.4884742]
[1755612960711,16.86835347,182.24,182.2,5.4884742]
[1755612960912,40.44,182.23,182.2,22.35682767]
[1755612961101,40.44,182.23,182.2,23.01682767]
[1755612961417,40.44,182.23,182.22,16.86835347]
[1755612961586,40.44,182.23,182.22,17.52835347]
[1755612961792,0.7,182.29,182.22,17.52835347]
[1755612962112,16.86835347,182.27,182.22,5.4878718]
[1755612962331,16.86835347,182.25,182.2,5.4884742]
[1755612962498,40.44,182.24,182.2,5.4884742]
[1755612962691,40.44,182.24,182.21,16.86835347]
[1755612962892,41.11,182.24,182.2,5.4884742]
[1755612963125,0.67,182.23,182.2,5.4884742]
[1755612963414,40.44,182.24,182.21,17.54835347]
[1755612963888,40.44,182.24,182.22,16.86835347]
[1755612964094,40.44,182.24,182.22,5.4878718]
[1755612964322,41.11,182.24,182.2,22.35682767]
[1755612964699,40.44,182.24,182.2,22.35682767]
[1755612965293,40.44,182.24,182.2,23.03682767]
[1755612965916,0.67,182.23,182.2,5.4884742]
[1755612966099,40.44,182.24,182.21,16.86835347]
[1755612966292,16.86835347,182.29,182.22,0.68]
[1755612966499,40.44,182.28,182.23,16.86835347]
[1755612966698,17.53835347,182.27,182.21,16.86835347]
[1755612966895,16.86835347,182.26,182.2,6.1684742]
[1755612967107,57.30835347,182.25,182.2,5.4884742]
[1755612967305,41.11,182.25,182.2,22.35682767]
[1755612967502,16.44281311,182.33,182.24,16.86835347]
[1755612967503,0.67,182.28,182.24,16.86835347]
[1755612967809,16.86835347,182.25,182.2,5.4884742]
[1755612968112,41.11,182.24,182.2,5.4884742]
[1755612968420,39.9393,182.23,182.2,5.4884742]
[1755612969204,56.80765347,182.23,182.19,5.48874526]
[1755612969397,17.53835347,182.22,182.19,5.48874526]
[1755612969596,0.67,182.21,182.18,5.51896734]
[1755612969813,0.67,182.21,182.18,0.03]
[1755612970526,39.9393,182.23,182.18,0.03]
[1755612971024,10.75079858,182.2,182.18,0.03]
[1755612971201,51.19079858,182.19,182.18,0.03]
[1755612971399,51.86079858,182.19,182.18,0.03]
[1755612971595,41.11,182.19,182.18,0.03]
[1755612972198,51.86079858,182.19,182.18,0.03]
[1755612972411,57.34957403,182.19,182.17,0.03]
[1755612972617,11.42079858,182.18,182.17,0.03]
[1755612972818,26.0,182.15,182.07,5.49239303]
[1755612973026,41.11,182.14,182.07,5.49239303]
[1755612973233,10.75079858,182.13,182.07,5.49239303]
[1755612973533,40.44,182.14,182.12,10.75079858]
[1755612973732,40.44,182.14,182.13,10.75079858]
[1755612973920,0.67,182.21,182.13,11.43079858]
[1755612974113,40.44,182.2,182.17,10.75079858]
[1755612974313,40.44,182.2,182.15,16.24077936]
[1755612974640,0.67,182.19,182.15,16.24077936]
[1755612974820,0.67,182.19,182.15,5.48998078]
[1755612975136,0.67,182.19,182.16,10.75079858]
[1755612975338,13.71210783,182.33,182.18,10.75079858]
[1755612975518,3.50560072,182.3,182.24,10.75079858]
[1755612975713,40.44,182.29,182.26,10.75079858]
[1755612975914,10.75079858,182.27,182.19,0.68]
[1755612976134,10.75079858,182.24,182.18,36.75079858]
[1755612976333,10.75079858,182.2,182.13,0.68]
[1755612976525,40.44,182.19,182.13,6.17058364]
[1755612976913,10.75079858,182.17,182.13,5.49058364]
[1755612977141,0.67,182.17,182.13,5.49058364]
[1755612977340,0.67,182.16,182.13,5.49058364]
[1755612977532,40.44,182.15,182.13,5.49058364]
[1755612977727,40.44,182.15,182.11,5.49118664]
[1755612977937,41.11,182.15,182.11,5.49118664]
[1755612978641,41.11,182.15,182.11,22.38786604]
[1755612978836,40.44,182.15,182.11,22.38786604]
[1755612979037,0.67,182.22,182.14,30.49227341]
[1755612979340,16.8966794,182.18,182.13,16.8966794]
[1755612979521,40.44,182.17,182.15,16.8966794]
[1755612979721,40.44,182.18,182.16,17.5766794]
[1755612979918,40.44,182.19,182.16,0.68]
[1755612980147,40.44,182.19,182.16,16.8966794]
[1755612980341,40.44,182.22,182.18,16.8966794]
[1755612980518,17.5666794,182.28,182.21,16.8966794]
[1755612980718,40.44,182.27,182.24,16.8966794]
[1755612981046,40.44,182.27,182.21,0.68]
[1755612981335,16.8966794,182.26,182.2,16.8966794]
[1755612981543,0.06,182.26,182.18,39.59559401]
[1755612981723,16.8966794,182.22,182.18,26.0]
[1755612981924,41.11,182.21,182.17,5.48937805]
[1755612982126,17.5666794,182.2,182.15,5.48973921]
[1755612982324,57.3366794,182.21,182.16,16.8966794]
[1755612982546,40.44,182.21,182.16,0.68]
[1755612982747,40.44,182.21,182.17,16.8966794]
[1755612983242,0.67,182.2,182.16,16.9266794]
[1755612983443,0.67,182.19,182.16,0.03]
[1755612983619,16.8966794,182.18,182.16,0.03]
[1755612983820,40.44,182.17,182.16,0.03]
[1755612984022,58.0066794,182.17,182.16,0.03]
[1755612984221,41.11,182.17,182.16,0.03]
[1755612984447,58.0066794,182.17,182.16,0.03]
[1755612984647,41.11,182.17,182.16,0.03]
[1755612984825,58.0066794,182.17,182.16,0.03]
[1755612985948,0.67,182.17,182.16,0.03]
[1755612986140,41.11,182.17,182.16,0.03]
[1755612986534,58.0066794,182.17,182.16,0.03]
[1755612987135,41.11,182.17,182.16,0.03]
[1755612987445,58.0066794,182.17,182.16,0.03]
[1755612988153,40.44,182.17,182.16,0.03]
[1755612988528,16.502104,182.25,182.16,16.9266794]
[1755612988730,16.8966794,182.2,182.16,0.03]
[1755612989032,40.44,182.19,182.17,16.8966794]
[1755612989238,40.44,182.2,182.18,0.68]
[1755612989429,40.44,182.2,182.19,26.0]
[1755612990254,41.11,182.2,182.16,0.03]
[1755612990449,40.44,182.2,182.19,26.0]
[1755612991042,40.44,182.2,182.17,16.8966794]
[1755612991244,40.44,182.2,182.16,31.5196794]
[1755612991553,0.67,182.19,182.16,0.03]
[1755612991927,57.3366794,182.2,182.16,0.03]
[1755612992126,0.67,182.18,182.16,0.03]
[1755612992331,57.3366794,182.17,182.16,0.03]
[1755612992756,58.0066794,182.17,182.16,0.03]
[1755612993352,80.61829543,182.17,182.16,0.03]
[1755612994028,63.72161603,182.17,182.16,0.03]
[1755612994226,80.61829543,182.17,182.16,0.03]
[1755612995125,80.61829543,182.17,182.03,0.66]
[1755612995126,26.0,182.14,181.97,13.732839]
[1755612995328,16.8966794,182.04,181.97,16.8966794]
[1755612995532,16.8966794,182.06,182.0,16.8966794]
[1755612995752,40.6,182.05,182.01,16.8966794]
[1755612995938,40.6,182.05,181.98,26.66]
[1755612996334,41.29,182.05,181.99,5.4948074]
[1755612996562,16.8966794,182.03,181.98,32.15506251]
[1755612996761,40.6,182.02,181.98,31.49506251]
[1755612997259,40.6,182.02,181.98,32.15506251]
[1755612997439,40.6,182.02,181.98,31.49506251]
[1755612997845,40.6,182.02,181.98,48.39174191]
[1755612998451,40.6,182.02,182.0,16.8966794]
[1755612998647,40.6,182.02,182.01,17.5566794]
[1755612998842,40.6,182.02,182.01,0.66]
[1755612999041,40.6,182.02,182.01,17.5566794]
[1755612999241,40.6,182.02,182.01,0.66]
[1755612999454,40.6,182.02,181.98,45.89283589]
[1755612999657,0.69,182.1,182.01,42.8966794]
[1755612999964,40.56,182.09,182.02,0.66]
[1755613000138,16.8966794,182.07,182.01,26.0]
[1755613000342,17.5866794,182.06,181.98,19.89283589]
[1755613000560,16.8966794,182.06,181.99,26.0]
[1755613000862,41.25,182.08,182.03,16.8966794]
[1755613001259,57.4566794,182.08,182.0,0.66]
[1755613001449,17.5866794,182.07,181.99,26.0]
[1755613001646,16.8966794,182.06,182.0,16.8966794]
[1755613001962,17.5866794,182.05,181.99,26.0]
[1755613002157,40.6,182.04,181.99,26.0]
[1755613002355,40.6,182.04,181.99,42.8966794]
[1755613002557,41.29,182.04,182.0,5.49450549]
[1755613002859,16.8966794,182.01,181.97,0.03]
[1755613003059,0.69,182.03,181.97,0.03]
[1755613003060,16.8966794,181.99,181.97,0.03]
[1755613003365,40.58,182.0,181.97,5.52534556]
[1755613003572,16.8966794,181.99,181.97,0.03]
[1755613003863,16.8966794,181.98,181.97,0.03]